[Event "*** Titled Tuesday Blitz"]
[Site "Chess.com"]
[Date "2020.04.28"]
[Round "5"]
[White "Chessmatus"]
[Black "levallem"]
[Result "1-0"]
[WhiteElo "2339"]
[BlackElo "2206"]
[TimeControl "180+1"]
[EndTime "10:57:20 PDT"]
[Termination "Chessmatus won by checkmate"]

1. e4 {[%clk 0:03:00.9]} 1... c5 {[%clk 0:02:56.9]} 2. Nf3 {[%clk 0:03:00.8]}
2... Nc6 {[%clk 0:02:55.4]} 3. d4 {[%clk 0:03:01.1]} 3... cxd4 {[%clk
0:02:56.3]} 4. Nxd4 {[%clk 0:03:01.9]} 4... g6 {[%clk 0:02:52.4]} 5. c4 {[%clk
0:03:00.9]} 5... Nf6 {[%clk 0:02:51.2]} 6. Nc3 {[%clk 0:03:00.4]} 6... Nxd4
{[%clk 0:02:51.4]} 7. Qxd4 {[%clk 0:03:00]} 7... d6 {[%clk 0:02:52.3]} 8. Be3
{[%clk 0:02:59.8]} 8... Bg7 {[%clk 0:02:52.7]} 9. f3 {[%clk 0:02:59.4]} 9... O-O
{[%clk 0:02:52.9]} 10. Qd2 {[%clk 0:02:59.3]} 10... Qa5 {[%clk 0:02:53.4]} 11.
Rc1 {[%clk 0:02:59.2]} 11... Be6 {[%clk 0:02:52.4]} 12. b3 {[%clk 0:02:52]}
12... Rfc8 {[%clk 0:02:51.5]} 13. Kf2 {[%clk 0:02:47.6]} 13... a6 {[%clk
0:02:47.7]} 14. Na4 {[%clk 0:02:47.3]} 14... Qxd2+ {[%clk 0:02:46]} 15. Bxd2
{[%clk 0:02:47.5]} 15... Nd7 {[%clk 0:02:36]} 16. Be3 {[%clk 0:02:46.4]} 16...
h5 {[%clk 0:02:23.1]} 17. Be2 {[%clk 0:02:41.3]} 17... Rc6 {[%clk 0:02:18.3]}
18. Rhd1 {[%clk 0:02:39.7]} 18... Rac8 {[%clk 0:02:17.3]} 19. g3 {[%clk
0:02:23.3]} 19... Kf8 {[%clk 0:02:14.8]} 20. Kg2 {[%clk 0:02:23.2]} 20... Nc5
{[%clk 0:01:51.3]} 21. Nc3 {[%clk 0:02:15.6]} 21... a5 {[%clk 0:01:49.3]} 22.
Nd5 {[%clk 0:02:06.4]} 22... Bxd5 {[%clk 0:01:14.9]} 23. cxd5 {[%clk 0:02:06.3]}
23... R6c7 {[%clk 0:01:14.4]} 24. Bb5 {[%clk 0:01:55.4]} 24... Bb2 {[%clk
0:01:07.9]} 25. Rc2 {[%clk 0:01:38.3]} 25... Ba3 {[%clk 0:01:02.1]} 26. Bh6+
{[%clk 0:01:23]} 26... Kg8 {[%clk 0:01:00.7]} 27. Bd2 {[%clk 0:01:22.6]} 27...
Bb4 {[%clk 0:00:38.6]} 28. Bg5 {[%clk 0:01:18.8]} 28... f6 {[%clk 0:00:34.3]}
29. Be3 {[%clk 0:01:17.9]} 29... Na6 {[%clk 0:00:20.9]} 30. Rxc7 {[%clk
0:01:07.2]} 30... Rxc7 {[%clk 0:00:18.6]} 31. Rc1 {[%clk 0:01:05.8]} 31... Rxc1
{[%clk 0:00:18.3]} 32. Bxc1 {[%clk 0:01:06.7]} 32... Nc5 {[%clk 0:00:18.5]} 33.
Kf2 {[%clk 0:01:06.5]} 33... Bc3 {[%clk 0:00:18.6]} 34. Ke3 {[%clk 0:01:02.4]}
34... b6 {[%clk 0:00:19]} 35. Bc4 {[%clk 0:00:49.4]} 35... Kf7 {[%clk
0:00:16.9]} 36. a3 {[%clk 0:00:47.1]} 36... g5 {[%clk 0:00:13.9]} 37. Ke2 {[%clk
0:00:40.8]} 37... Bd4 {[%clk 0:00:12.9]} 38. Be3 {[%clk 0:00:37]} 38... Bxe3
{[%clk 0:00:12.3]} 39. Kxe3 {[%clk 0:00:37.9]} 39... Kg6 {[%clk 0:00:10.7]} 40.
b4 {[%clk 0:00:36.8]} 40... axb4 {[%clk 0:00:10.6]} 41. axb4 {[%clk 0:00:37.7]}
41... Nd7 {[%clk 0:00:10.9]} 42. Be2 {[%clk 0:00:36.5]} 42... h4 {[%clk
0:00:10.4]} 43. Kd4 {[%clk 0:00:35]} 43... hxg3 {[%clk 0:00:10.2]} 44. hxg3
{[%clk 0:00:34.9]} 44... Kf7 {[%clk 0:00:10]} 45. Kc4 {[%clk 0:00:34.9]} 45...
Ke8 {[%clk 0:00:08.8]} 46. Kb5 {[%clk 0:00:35.2]} 46... Kd8 {[%clk 0:00:09.2]}
47. Kc6 {[%clk 0:00:35.4]} 47... Kc8 {[%clk 0:00:09]} 48. Ba6+ {[%clk 0:00:35]}
48... Kd8 {[%clk 0:00:09.2]} 49. f4 {[%clk 0:00:33.1]} 49... gxf4 {[%clk
0:00:09.4]} 50. gxf4 {[%clk 0:00:32.1]} 50... f5 {[%clk 0:00:09.8]} 51. exf5
{[%clk 0:00:31]} 51... Nf6 {[%clk 0:00:10]} 52. Bc4 {[%clk 0:00:29.7]} 52... Nh5
{[%clk 0:00:09.3]} 53. Kxb6 {[%clk 0:00:29.2]} 53... Nxf4 {[%clk 0:00:09.7]} 54.
Kb7 {[%clk 0:00:27.4]} 54... Ng2 {[%clk 0:00:09.5]} 55. b5 {[%clk 0:00:26.8]}
55... Ne3 {[%clk 0:00:10.4]} 56. Bb3 {[%clk 0:00:26.9]} 56... Nxf5 {[%clk
0:00:10.4]} 57. b6 {[%clk 0:00:27.4]} 57... Nd4 {[%clk 0:00:10.5]} 58. Ka8
{[%clk 0:00:25.8]} 58... Nxb3 {[%clk 0:00:04.9]} 59. b7 {[%clk 0:00:26.1]} 59...
Nc5 {[%clk 0:00:05.4]} 60. b8=Q+ {[%clk 0:00:26.4]} 60... Kd7 {[%clk 0:00:06.3]}
61. Qb5+ {[%clk 0:00:25.3]} 61... Kd8 {[%clk 0:00:06.1]} 62. Qe2 {[%clk
0:00:24.1]} 62... Kd7 {[%clk 0:00:07]} 63. Ka7 {[%clk 0:00:23.6]} 63... Kd8
{[%clk 0:00:07.9]} 64. Kb6 {[%clk 0:00:23.5]} 64... Kd7 {[%clk 0:00:08.8]} 65.
Kb5 {[%clk 0:00:23.4]} 65... Kd8 {[%clk 0:00:09.7]} 66. Kc6 {[%clk 0:00:23]}
66... Ke8 {[%clk 0:00:09.5]} 67. Qh5+ {[%clk 0:00:22.8]} 67... Kf8 {[%clk
0:00:09.7]} 68. Kc7 {[%clk 0:00:22.3]} 68... e6 {[%clk 0:00:09]} 69. Kxd6 {[%clk
0:00:21.3]} 69... exd5 {[%clk 0:00:07.6]} 70. Kxc5 {[%clk 0:00:20.5]} 70... d4
{[%clk 0:00:08.5]} 71. Qh7 {[%clk 0:00:20]} 71... d3 {[%clk 0:00:09.4]} 72. Qxd3
{[%clk 0:00:19.5]} 72... Kg7 {[%clk 0:00:10.3]} 73. Qd6 {[%clk 0:00:19.5]} 73...
Kf7 {[%clk 0:00:09.3]} 74. Kd5 {[%clk 0:00:18.1]} 74... Kg7 {[%clk 0:00:10.2]}
75. Qe6 {[%clk 0:00:18.3]} 75... Kh8 {[%clk 0:00:11.1]} 76. Qd7 {[%clk
0:00:17.7]} 76... Kg8 {[%clk 0:00:11.1]} 77. Ke6 {[%clk 0:00:18]} 77... Kf8
{[%clk 0:00:12]} 78. Qf7# {[%clk 0:00:17.2]} 1-0

[Event "*** Titled Tuesday Blitz"]
[Site "Chess.com"]
[Date "2020.04.28"]
[Round "5"]
[White "GukeshDommaraju"]
[Black "Marty435"]
[Result "1/2-1/2"]
[WhiteElo "2748"]
[BlackElo "2546"]
[TimeControl "180+1"]
[EndTime "10:57:25 PDT"]
[Termination "Game drawn by agreement"]

1. e4 {[%clk 0:03:00.9]} 1... c6 {[%clk 0:02:59.6]} 2. d4 {[%clk 0:03:00.5]}
2... d5 {[%clk 0:03:00.2]} 3. Nc3 {[%clk 0:03:00.5]} 3... dxe4 {[%clk 0:03:00]}
4. Nxe4 {[%clk 0:03:00.7]} 4... Bf5 {[%clk 0:03:00.5]} 5. Ng3 {[%clk 0:03:00.6]}
5... Bg6 {[%clk 0:03:01.1]} 6. N1e2 {[%clk 0:02:57.6]} 6... e5 {[%clk
0:02:34.8]} 7. dxe5 {[%clk 0:02:36.7]} 7... Qa5+ {[%clk 0:02:26.4]} 8. Nc3
{[%clk 0:02:09.4]} 8... Bb4 {[%clk 0:02:18.9]} 9. f4 {[%clk 0:01:50.2]} 9...
Bxc3+ {[%clk 0:02:15.6]} 10. bxc3 {[%clk 0:01:49.9]} 10... Qxc3+ {[%clk
0:02:14.3]} 11. Bd2 {[%clk 0:01:49.7]} 11... Qxc2 {[%clk 0:02:13.9]} 12. Qxc2
{[%clk 0:01:46.6]} 12... Bxc2 {[%clk 0:02:14.8]} 13. Rc1 {[%clk 0:01:46.8]}
13... Ba4 {[%clk 0:02:08.8]} 14. Nf5 {[%clk 0:01:46.6]} 14... Ne7 {[%clk
0:01:55.7]} 15. Nd6+ {[%clk 0:01:40.5]} 15... Kf8 {[%clk 0:01:54.1]} 16. Nxb7
{[%clk 0:01:32.8]} 16... Nd7 {[%clk 0:01:49.7]} 17. Nc5 {[%clk 0:01:20.9]} 17...
Nxc5 {[%clk 0:01:47.9]} 18. Rxc5 {[%clk 0:01:20.7]} 18... Rb8 {[%clk 0:01:47.5]}
19. Bd3 {[%clk 0:01:20.2]} 19... Rb2 {[%clk 0:01:37.3]} 20. Ra5 {[%clk
0:00:49.6]} 20... Bb5 {[%clk 0:01:29.7]} 21. Bxb5 {[%clk 0:00:32.8]} 21... Rxb5
{[%clk 0:01:21.6]} 22. Rxa7 {[%clk 0:00:32.1]} 22... Nc8 {[%clk 0:01:15.8]} 23.
Rc7 {[%clk 0:00:29.4]} 23... Ne7 {[%clk 0:01:00.5]} 24. Ke2 {[%clk 0:00:29]}
24... Ke8 {[%clk 0:00:54.9]} 25. Rc1 {[%clk 0:00:23.8]} 25... Kd8 {[%clk
0:00:52.2]} 26. Ra7 {[%clk 0:00:23.8]} 26... Rb2 {[%clk 0:00:49.6]} 27. Ra8+
{[%clk 0:00:20.5]} 27... Nc8 {[%clk 0:00:48.8]} 28. Rxc6 {[%clk 0:00:20.7]}
28... Kd7 {[%clk 0:00:47.7]} 29. Rc3 {[%clk 0:00:20.7]} 29... Re8 {[%clk
0:00:44.8]} 30. Rd3+ {[%clk 0:00:19.8]} 30... Kc7 {[%clk 0:00:44.3]} 31. Rc3+
{[%clk 0:00:19.3]} 31... Kb7 {[%clk 0:00:44.6]} 32. Raa3 {[%clk 0:00:19]} 32...
Nb6 {[%clk 0:00:44.3]} 33. Rcb3 {[%clk 0:00:17.9]} 33... Rc2 {[%clk 0:00:40.8]}
34. Kd1 {[%clk 0:00:18.2]} 34... Rec8 {[%clk 0:00:39.2]} 35. Be3 {[%clk
0:00:17.7]} 35... R2c6 {[%clk 0:00:35.4]} 36. Rxb6+ {[%clk 0:00:17.6]} 36...
Rxb6 {[%clk 0:00:36.3]} 37. Bxb6 {[%clk 0:00:17.5]} 37... Kxb6 {[%clk
0:00:37.2]} 38. Rd3 {[%clk 0:00:18.1]} 38... Ra8 {[%clk 0:00:34.1]} 39. a3
{[%clk 0:00:16]} 39... Kc6 {[%clk 0:00:29.8]} 40. g3 {[%clk 0:00:15.9]} 40...
Ra4 {[%clk 0:00:27.3]} 41. Ke2 {[%clk 0:00:16.2]} 41... Rc4 {[%clk 0:00:27.2]}
42. Kf3 {[%clk 0:00:16.4]} 42... Rc2 {[%clk 0:00:27.2]} 43. Rd6+ {[%clk
0:00:16.2]} 43... Kc7 {[%clk 0:00:26.3]} 44. Rd3 {[%clk 0:00:14.3]} 44... Rxh2
{[%clk 0:00:26.2]} 45. f5 {[%clk 0:00:14.5]} 45... Rh1 {[%clk 0:00:23.5]} 46.
Ke4 {[%clk 0:00:14.5]} 46... Re1+ {[%clk 0:00:22.7]} 47. Re3 {[%clk 0:00:14.9]}
47... Rb1 {[%clk 0:00:20.3]} 48. g4 {[%clk 0:00:15.2]} 48... Kd7 {[%clk
0:00:19.8]} 49. Kf4 {[%clk 0:00:15.5]} 49... Ke7 {[%clk 0:00:19.6]} 50. Rc3
{[%clk 0:00:14.9]} 50... Rf1+ {[%clk 0:00:16.4]} 51. Rf3 {[%clk 0:00:14.9]}
51... Ra1 {[%clk 0:00:15.9]} 52. g5 {[%clk 0:00:15.3]} 52... Rh1 {[%clk
0:00:09.8]} 53. Rb3 {[%clk 0:00:14.8]} 53... Rh4+ {[%clk 0:00:09]} 54. Kg3
{[%clk 0:00:15]} 54... Re4 {[%clk 0:00:09.1]} 55. Rb7+ {[%clk 0:00:15.1]} 55...
Ke8 {[%clk 0:00:09.3]} 56. Rb5 {[%clk 0:00:12.3]} 56... Re3+ {[%clk 0:00:09.3]}
57. Kf4 {[%clk 0:00:12.6]} 57... Rxa3 {[%clk 0:00:09.6]} 58. Rb8+ {[%clk
0:00:12.4]} 58... Ke7 {[%clk 0:00:09.6]} 59. Rb7+ {[%clk 0:00:13.3]} 59... Ke8
{[%clk 0:00:09.8]} 60. f6 {[%clk 0:00:13.8]} 60... Ra4+ {[%clk 0:00:08.6]} 61.
Ke3 {[%clk 0:00:12.7]} 61... gxf6 {[%clk 0:00:07.7]} 62. gxf6 {[%clk 0:00:13.2]}
62... h5 {[%clk 0:00:05.8]} 63. Rb8+ {[%clk 0:00:12.9]} 63... Kd7 {[%clk
0:00:05.9]} 64. Rf8 {[%clk 0:00:13]} 64... Ke6 {[%clk 0:00:05.6]} 65. Re8+
{[%clk 0:00:13.4]} 65... Kf5 {[%clk 0:00:05.8]} 66. Re7 {[%clk 0:00:11.3]} 66...
Re4+ {[%clk 0:00:05.2]} 67. Kf3 {[%clk 0:00:11]} 67... Rxe5 {[%clk 0:00:06.1]}
68. Rxf7 {[%clk 0:00:11.3]} 68... Kg6 {[%clk 0:00:03.8]} 69. Rf8 {[%clk
0:00:10.7]} 69... Rf5+ {[%clk 0:00:04]} 70. Kg3 {[%clk 0:00:11.2]} 70... Rxf6
{[%clk 0:00:04.9]} 71. Rg8+ {[%clk 0:00:11.6]} 71... Kf7 {[%clk 0:00:04.7]} 72.
Ra8 {[%clk 0:00:11.6]} 72... Rg6+ {[%clk 0:00:04.7]} 73. Kh4 {[%clk 0:00:11.8]}
73... Re6 {[%clk 0:00:05.1]} 74. Kxh5 {[%clk 0:00:11.8]} 74... Re5+ {[%clk
0:00:05.6]} 75. Kg4 {[%clk 0:00:11.6]} 75... Re4+ {[%clk 0:00:05.4]} 76. Kf5
{[%clk 0:00:11.2]} 76... Re7 {[%clk 0:00:05]} 1/2-1/2

[Event "*** Titled Tuesday Blitz"]
[Site "Chess.com"]
[Date "2020.04.28"]
[Round "5"]
[White "Pawnpusherschessaccademy"]
[Black "Spring199"]
[Result "1-0"]
[WhiteElo "2239"]
[BlackElo "2381"]
[TimeControl "180+1"]
[EndTime "10:57:25 PDT"]
[Termination "Pawnpusherschessaccademy won on time"]

1. e4 {[%clk 0:03:00.9]} 1... e5 {[%clk 0:02:59.8]} 2. Nf3 {[%clk 0:03:00.6]}
2... Nc6 {[%clk 0:02:59.5]} 3. Bb5 {[%clk 0:03:01.1]} 3... a6 {[%clk 0:02:59.1]}
4. Ba4 {[%clk 0:03:01.4]} 4... Nf6 {[%clk 0:02:59.4]} 5. Qe2 {[%clk 0:03:01.9]}
5... b5 {[%clk 0:02:49.5]} 6. Bb3 {[%clk 0:03:01.6]} 6... Be7 {[%clk 0:02:49.6]}
7. a4 {[%clk 0:03:00.9]} 7... Rb8 {[%clk 0:02:47.4]} 8. d4 {[%clk 0:03:00.7]}
8... d6 {[%clk 0:02:37.6]} 9. c3 {[%clk 0:02:59.6]} 9... O-O {[%clk 0:02:36.7]}
10. axb5 {[%clk 0:02:58.8]} 10... axb5 {[%clk 0:02:36.2]} 11. d5 {[%clk
0:02:58.9]} 11... Bb7 {[%clk 0:02:22.9]} 12. dxc6 {[%clk 0:02:57.9]} 12... Bxc6
{[%clk 0:02:23.8]} 13. Bc2 {[%clk 0:02:51.5]} 13... b4 {[%clk 0:02:21.7]} 14.
O-O {[%clk 0:02:46]} 14... Qd7 {[%clk 0:02:20.3]} 15. Bg5 {[%clk 0:02:08.1]}
15... h6 {[%clk 0:02:18.2]} 16. Bh4 {[%clk 0:02:07.9]} 16... bxc3 {[%clk
0:02:00.1]} 17. bxc3 {[%clk 0:02:07.4]} 17... Rb2 {[%clk 0:01:59.1]} 18. Bxf6
{[%clk 0:01:48.5]} 18... Bxf6 {[%clk 0:01:57.8]} 19. Qd1 {[%clk 0:01:45.5]}
19... Rfb8 {[%clk 0:01:55.2]} 20. Na3 {[%clk 0:01:40.9]} 20... Qg4 {[%clk
0:01:45.9]} 21. Re1 {[%clk 0:01:38.6]} 21... h5 {[%clk 0:01:35.2]} 22. Nc4
{[%clk 0:01:37.2]} 22... R2b5 {[%clk 0:01:18.6]} 23. Ne3 {[%clk 0:01:34]} 23...
Qd7 {[%clk 0:01:15.8]} 24. Ba4 {[%clk 0:01:28.9]} 24... Rb2 {[%clk 0:01:13.9]}
25. Nd5 {[%clk 0:01:22.4]} 25... Bd8 {[%clk 0:01:12.2]} 26. Bxc6 {[%clk
0:01:10.2]} 26... Qxc6 {[%clk 0:01:11.6]} 27. Re2 {[%clk 0:01:10.6]} 27... R2b7
{[%clk 0:01:07.2]} 28. h3 {[%clk 0:01:06.2]} 28... Qc4 {[%clk 0:01:06.6]} 29.
Re1 {[%clk 0:01:03.1]} 29... c6 {[%clk 0:01:05.7]} 30. Ne3 {[%clk 0:01:01.2]}
30... Qc5 {[%clk 0:01:04.7]} 31. Nf5 {[%clk 0:00:59.6]} 31... g6 {[%clk
0:01:02.1]} 32. Qxd6 {[%clk 0:00:55.9]} 32... Qxc3 {[%clk 0:00:56.8]} 33. Ng3
{[%clk 0:00:52.8]} 33... Bc7 {[%clk 0:00:52.5]} 34. Qd2 {[%clk 0:00:49.9]} 34...
Qc5 {[%clk 0:00:48.6]} 35. Rac1 {[%clk 0:00:49]} 35... Qb5 {[%clk 0:00:44.2]}
36. Qc3 {[%clk 0:00:48.8]} 36... Ba5 {[%clk 0:00:43]} 37. Qxe5 {[%clk
0:00:41.4]} 37... Bxe1 {[%clk 0:00:42.1]} 38. Rxe1 {[%clk 0:00:39.7]} 38... Qxe5
{[%clk 0:00:41.1]} 39. Nxe5 {[%clk 0:00:39.7]} 39... Rb1 {[%clk 0:00:41.1]} 40.
Kf1 {[%clk 0:00:38.9]} 40... c5 {[%clk 0:00:39.9]} 41. Ne2 {[%clk 0:00:27]}
41... f6 {[%clk 0:00:27.8]} 42. Nxg6 {[%clk 0:00:25.6]} 42... Rxe1+ {[%clk
0:00:26.9]} 43. Kxe1 {[%clk 0:00:25.1]} 43... c4 {[%clk 0:00:27.1]} 44. Ngf4
{[%clk 0:00:20.4]} 44... Rb2 {[%clk 0:00:24.2]} 45. Kd1 {[%clk 0:00:20.1]} 45...
Ra2 {[%clk 0:00:23.6]} 46. Kc1 {[%clk 0:00:19.9]} 46... h4 {[%clk 0:00:23.1]}
47. Kd1 {[%clk 0:00:19.7]} 47... Kf7 {[%clk 0:00:22]} 48. Nd5 {[%clk 0:00:20]}
48... Ke6 {[%clk 0:00:20.1]} 49. Ndc3 {[%clk 0:00:20.5]} 49... Ra1+ {[%clk
0:00:19.7]} 50. Kd2 {[%clk 0:00:20.4]} 50... Rf1 {[%clk 0:00:19.9]} 51. Ke3
{[%clk 0:00:19.4]} 51... Ra1 {[%clk 0:00:18.5]} 52. Kd4 {[%clk 0:00:18.6]} 52...
Rf1 {[%clk 0:00:17.3]} 53. Ke3 {[%clk 0:00:18.4]} 53... Ra1 {[%clk 0:00:16.4]}
54. f4 {[%clk 0:00:19.3]} 54... f5 {[%clk 0:00:10.6]} 55. e5 {[%clk 0:00:19]}
55... Rh1 {[%clk 0:00:06.7]} 56. Kd4 {[%clk 0:00:17.9]} 56... Rh2 {[%clk
0:00:06.8]} 57. Kxc4 {[%clk 0:00:16.8]} 57... Rxg2 {[%clk 0:00:03.4]} 58. Nd4+
{[%clk 0:00:17]} 58... Ke7 {[%clk 0:00:03.4]} 59. Nxf5+ {[%clk 0:00:17]} 59...
Ke6 {[%clk 0:00:04.3]} 60. Nxh4 {[%clk 0:00:16.9]} 60... Rg3 {[%clk 0:00:04.4]}
61. f5+ {[%clk 0:00:15.7]} 61... Kxe5 {[%clk 0:00:03.2]} 62. Nd5 {[%clk
0:00:12.3]} 1-0

[Event "*** Titled Tuesday Blitz"]
[Site "Chess.com"]
[Date "2020.04.28"]
[Round "5"]
[White "tgpgoat"]
[Black "Popopuiyt"]
[Result "1/2-1/2"]
[WhiteElo "2197"]
[BlackElo "2339"]
[TimeControl "180+1"]
[EndTime "10:57:27 PDT"]
[Termination "Game drawn by repetition"]

1. e4 {[%clk 0:03:00.9]} 1... c5 {[%clk 0:02:59.9]} 2. Nf3 {[%clk 0:02:59.3]}
2... Nc6 {[%clk 0:03:00.2]} 3. d4 {[%clk 0:02:59.3]} 3... cxd4 {[%clk 0:03:00]}
4. Nxd4 {[%clk 0:03:00.2]} 4... Nf6 {[%clk 0:03:00.4]} 5. Nc3 {[%clk 0:02:59.9]}
5... e5 {[%clk 0:03:00.3]} 6. Ndb5 {[%clk 0:02:59.2]} 6... d6 {[%clk 0:03:00.7]}
7. Na3 {[%clk 0:03:00.1]} 7... a6 {[%clk 0:02:51.4]} 8. Bg5 {[%clk 0:02:59.5]}
8... b5 {[%clk 0:02:50.1]} 9. Nd5 {[%clk 0:02:59.3]} 9... Be7 {[%clk 0:02:49.9]}
10. Bxf6 {[%clk 0:02:55.6]} 10... Bxf6 {[%clk 0:02:50.8]} 11. c3 {[%clk
0:02:55.8]} 11... O-O {[%clk 0:02:50.3]} 12. Be2 {[%clk 0:02:54.1]} 12... Bg5
{[%clk 0:02:48]} 13. O-O {[%clk 0:02:53.7]} 13... Rb8 {[%clk 0:02:46.6]} 14. Nc2
{[%clk 0:02:53]} 14... Kh8 {[%clk 0:02:43]} 15. Nce3 {[%clk 0:02:51.3]} 15...
Be6 {[%clk 0:02:23.4]} 16. a4 {[%clk 0:02:32.6]} 16... bxa4 {[%clk 0:02:04.5]}
17. Qxa4 {[%clk 0:02:30.1]} 17... Rxb2 {[%clk 0:01:58.9]} 18. Qxc6 {[%clk
0:02:21]} 18... Rxe2 {[%clk 0:01:58.6]} 19. Qxa6 {[%clk 0:02:20.6]} 19... Rb2
{[%clk 0:01:53.3]} 20. Rfd1 {[%clk 0:02:10]} 20... Bxe3 {[%clk 0:01:36.3]} 21.
Nxe3 {[%clk 0:02:09.3]} 21... Rb6 {[%clk 0:01:36.5]} 22. Qd3 {[%clk 0:02:06.3]}
22... Rc6 {[%clk 0:01:32.1]} 23. Ra6 {[%clk 0:02:02.8]} 23... Qc7 {[%clk
0:01:29.7]} 24. Rxc6 {[%clk 0:01:56.3]} 24... Qxc6 {[%clk 0:01:29.8]} 25. Qxd6
{[%clk 0:01:56.4]} 25... Qxd6 {[%clk 0:01:27.9]} 26. Rxd6 {[%clk 0:01:57.3]}
26... g6 {[%clk 0:01:27.1]} 27. Rd2 {[%clk 0:01:35.8]} 27... Ra8 {[%clk
0:01:24.7]} 28. f3 {[%clk 0:01:33.4]} 28... Bb3 {[%clk 0:01:21.8]} 29. Kf2
{[%clk 0:01:31.8]} 29... Rc8 {[%clk 0:01:20.2]} 30. Rd3 {[%clk 0:01:17.4]} 30...
Kg7 {[%clk 0:01:19]} 31. Nd5 {[%clk 0:01:14.7]} 31... f5 {[%clk 0:00:53.1]} 32.
Ke3 {[%clk 0:01:03.8]} 32... Rc6 {[%clk 0:00:37]} 33. Nb4 {[%clk 0:00:48.4]}
33... Rc7 {[%clk 0:00:35.9]} 34. Nd5 {[%clk 0:00:47.3]} 34... Rc6 {[%clk
0:00:34.8]} 35. Kd2 {[%clk 0:00:47.7]} 35... Bc4 {[%clk 0:00:27.6]} 36. Re3
{[%clk 0:00:46.8]} 36... f4 {[%clk 0:00:27.9]} 37. Re1 {[%clk 0:00:46.1]} 37...
Bxd5 {[%clk 0:00:28.3]} 38. exd5 {[%clk 0:00:46]} 38... Rc5 {[%clk 0:00:28.8]}
39. Rxe5 {[%clk 0:00:46]} 39... Kf6 {[%clk 0:00:28.7]} 40. Re6+ {[%clk
0:00:45.6]} 40... Kf7 {[%clk 0:00:29]} 41. Re4 {[%clk 0:00:34.9]} 41... Rxd5+
{[%clk 0:00:29.4]} 42. Kc2 {[%clk 0:00:35.1]} 42... g5 {[%clk 0:00:29.9]} 43. c4
{[%clk 0:00:34.2]} 43... Ra5 {[%clk 0:00:28.9]} 44. Kb3 {[%clk 0:00:33.7]} 44...
Ra1 {[%clk 0:00:25.5]} 45. Re2 {[%clk 0:00:32.9]} 45... Rc1 {[%clk 0:00:18.8]}
46. Rc2 {[%clk 0:00:32.3]} 46... Rb1+ {[%clk 0:00:18.8]} 47. Kc3 {[%clk
0:00:31.3]} 47... Ke6 {[%clk 0:00:19.3]} 48. Kd4 {[%clk 0:00:29.3]} 48... Kd6
{[%clk 0:00:19.7]} 49. c5+ {[%clk 0:00:29]} 49... Kc6 {[%clk 0:00:19.9]} 50. Ke5
{[%clk 0:00:29.3]} 50... Rd1 {[%clk 0:00:17.5]} 51. Kf5 {[%clk 0:00:27.5]} 51...
Rd5+ {[%clk 0:00:17.7]} 52. Kf6 {[%clk 0:00:27.8]} 52... h5 {[%clk 0:00:17.8]}
53. Kg6 {[%clk 0:00:25.7]} 53... g4 {[%clk 0:00:17.7]} 54. Rf2 {[%clk
0:00:17.9]} 54... Kxc5 {[%clk 0:00:14.3]} 55. fxg4 {[%clk 0:00:17.6]} 55... hxg4
{[%clk 0:00:13.9]} 56. Rxf4 {[%clk 0:00:17.9]} 56... g3 {[%clk 0:00:13.9]} 57.
hxg3 {[%clk 0:00:17.2]} 57... Rd2 {[%clk 0:00:13.4]} 58. Rf5+ {[%clk 0:00:15.6]}
58... Kd6 {[%clk 0:00:13.5]} 59. Rg5 {[%clk 0:00:16.5]} 59... Rxg2 {[%clk
0:00:12.9]} 60. Kh5 {[%clk 0:00:16.9]} 60... Ke6 {[%clk 0:00:13]} 61. Kg6 {[%clk
0:00:16.3]} 61... Ra2 {[%clk 0:00:12.5]} 62. g4 {[%clk 0:00:16.6]} 62... Ke7
{[%clk 0:00:12.3]} 63. Kg7 {[%clk 0:00:16.2]} 63... Ra7 {[%clk 0:00:09.5]} 64.
Rg6 {[%clk 0:00:14.6]} 64... Ra8 {[%clk 0:00:08.4]} 65. g5 {[%clk 0:00:13.6]}
65... Rf8 {[%clk 0:00:08]} 66. Rf6 {[%clk 0:00:12]} 66... Ra8 {[%clk 0:00:06.4]}
67. g6 {[%clk 0:00:11.6]} 67... Ra1 {[%clk 0:00:05.3]} 68. Rf7+ {[%clk
0:00:11.8]} 68... Ke6 {[%clk 0:00:05.3]} 69. Kg8 {[%clk 0:00:11]} 69... Ra8+
{[%clk 0:00:04.1]} 70. Rf8 {[%clk 0:00:11]} 70... Ra7 {[%clk 0:00:04.7]} 71. g7
{[%clk 0:00:11.1]} 71... Ra1 {[%clk 0:00:04.9]} 72. Re8+ {[%clk 0:00:07.7]}
72... Kf6 {[%clk 0:00:04.9]} 73. Rf8+ {[%clk 0:00:07.6]} 73... Kg6 {[%clk
0:00:04.9]} 74. Rf2 {[%clk 0:00:04.6]} 74... Ra8+ {[%clk 0:00:04.4]} 75. Rf8
{[%clk 0:00:04.7]} 75... Ra7 {[%clk 0:00:05]} 76. Rd8 {[%clk 0:00:03.4]} 76...
Rxg7+ {[%clk 0:00:05.1]} 77. Kh8 {[%clk 0:00:03.6]} 77... Rh7+ {[%clk
0:00:05.1]} 78. Kg8 {[%clk 0:00:03.6]} 78... Rg7+ {[%clk 0:00:06]} 79. Kh8
{[%clk 0:00:04]} 79... Rh7+ {[%clk 0:00:06.5]} 80. Kg8 {[%clk 0:00:04.4]} 80...
Rg7+ {[%clk 0:00:07.4]} 1/2-1/2